Workbook

Sheet ПЛАН
A5: Отм. | B5: Наименование изделия | C5: Обозначения изделия | D5: Наименование детали | E5: Обозначение детали | F5: Количество | G5: Метка для перемещения в "ДЕТАЛИ"
B6: Амортизатор | C6: 100-001 | F6: 100
D7: Корпус | E7: 100-001-01 | F7: =F6+F10 -> 300 | G7: +
D8: Шток | E8: 100-001-02 | F8: =F6 -> 100 | G8: +
B9: Амортизатор | C9: 100-002 | F9: 200
D10: Корпус | E10: 100-002-01 | F10: 200
D11: Шток | E11: 100-002-02 | F11: =F9+F12 -> 500 | G11: +
B12: Амортизатор | C12: 100-003 | F12: 300
D13: Корпус ам. | E13: 100-003-01 | F13: =F12 -> 300 | G13: +
D14: Шток | E14: 100-002-02
B15: Амортизатор | C15: 100-004 | F15: 400
D16: Корпус ам. | E16: 100-004-01 | F16: =F15 -> 400 | G16: +
D17: Шток | E17: 100-004-02 | F17: =F15 -> 400 | G17: +
D18: Цилиндр ам. | E18: 100-004-03 | F18: =F15 -> 400 | G18: +
D19: Головка | E19: 100-004-04 | F19: =F15 -> 400 | G19: +
B20: Амортизатор | C20: 100-005 | F20: 500
D21: Корпус ам. | E21: 100-005-01 | F21: =F20 -> 500 | G21: +
D22: Шток | E22: 100-005-02 | F22: =F20 -> 500 | G22: +
D23: Цилиндр ам. | E23: 100-005-03 | F23: =F20 -> 500 | G23: +

Sheet ДЕТАЛИ
A1: Примечание | B1: Станок (группа станков) | C1: Наименование детали | D1: Обозначение детали | E1: Трудоемкость на 100 деталей в нормо-часах | F1: Количество деталей на программу (в шт.) | G1: Трудоемк. на программу в нормо-час. | H1: Тшт, мин | I1: Количество деталей в смену (в шт.) | M1: Станки
A2: 1 | B2: 2 | C2: 3 | D2: 4 | E2: 5 | F2: 6 | G2: 7 | H2: 8 | I2: 9 | M2: Станок 1
B3: Станок 1 | C3: =IFERROR(INDEX(ПЛАН!D:D,SMALL(IF(ПЛАН!$G$6:$G$249="+",ROW(ПЛАН!$G$6:$G$249)),ROW(D1))),"0") -> Корпус | D3: =IFERROR(INDEX(ПЛАН!E:E,SMALL(IF(ПЛАН!$G$6:$G$249="+",ROW(ПЛАН!$G$6:$G$249)),ROW(E1))),"0") -> 100-001-01 | E3: =H3/60*100 -> 3.516666667 | F3: =IFERROR(INDEX(ПЛАН!F:F,SMALL(IF(ПЛАН!$G$6:$G$249="+",ROW(ПЛАН!$G$6:$G$249)),ROW(F1))),"0") -> 300 | G3: =E3*F3/100 -> 10.55 | H3: 2.11 | I3: =8*60/H3 -> 227.4881517 | M3: Станок 2
B4: Станок 2 | C4: =IFERROR(INDEX(ПЛАН!D:D,SMALL(IF(ПЛАН!$G$6:$G$249="+",ROW(ПЛАН!$G$6:$G$249)),ROW(D2))),"0") -> Шток | D4: =IFERROR(INDEX(ПЛАН!E:E,SMALL(IF(ПЛАН!$G$6:$G$249="+",ROW(ПЛАН!$G$6:$G$249)),ROW(E2))),"0") -> 100-001-02 | E4: 7.956666667 | F4: =IFERROR(INDEX(ПЛАН!F:F,SMALL(IF(ПЛАН!$G$6:$G$249="+",ROW(ПЛАН!$G$6:$G$249)),ROW(F2))),"0") -> 100 | G4: 7.956666667 | H4: 4.774 | I4: =8*60/H4 -> 100.5446167 | M4: Не выбрано
B5: Станок 2 | C5: =IFERROR(INDEX(ПЛАН!D:D,SMALL(IF(ПЛАН!$G$6:$G$249="+",ROW(ПЛАН!$G$6:$G$249)),ROW(D3))),"0") -> Шток | D5: =IFERROR(INDEX(ПЛАН!E:E,SMALL(IF(ПЛАН!$G$6:$G$249="+",ROW(ПЛАН!$G$6:$G$249)),ROW(E3))),"0") -> 100-002-02 | E5: 3.516666667 | F5: =IFERROR(INDEX(ПЛАН!F:F,SMALL(IF(ПЛАН!$G$6:$G$249="+",ROW(ПЛАН!$G$6:$G$249)),ROW(F3))),"0") -> 500 | G5: 17.58333333 | H5: 2.11 | I5: 227.4881517
B6: Станок 1 | C6: =IFERROR(INDEX(ПЛАН!D:D,SMALL(IF(ПЛАН!$G$6:$G$249="+",ROW(ПЛАН!$G$6:$G$249)),ROW(D4))),"0") -> Корпус ам. | D6: =IFERROR(INDEX(ПЛАН!E:E,SMALL(IF(ПЛАН!$G$6:$G$249="+",ROW(ПЛАН!$G$6:$G$249)),ROW(E4))),"0") -> 100-003-01 | E6: 7.956666667 | F6: =IFERROR(INDEX(ПЛАН!F:F,SMALL(IF(ПЛАН!$G$6:$G$249="+",ROW(ПЛАН!$G$6:$G$249)),ROW(F4))),"0") -> 300 | G6: 23.87 | H6: 4.774 | I6: 100.5446167
B7: Станок 1 | C7: =IFERROR(INDEX(ПЛАН!D:D,SMALL(IF(ПЛАН!$G$6:$G$249="+",ROW(ПЛАН!$G$6:$G$249)),ROW(D5))),"0") -> Корпус ам. | D7: =IFERROR(INDEX(ПЛАН!E:E,SMALL(IF(ПЛАН!$G$6:$G$249="+",ROW(ПЛАН!$G$6:$G$249)),ROW(E5))),"0") -> 100-004-01 | E7: 4.533333333 | F7: =IFERROR(INDEX(ПЛАН!F:F,SMALL(IF(ПЛАН!$G$6:$G$249="+",ROW(ПЛАН!$G$6:$G$249)),ROW(F5))),"0") -> 400 | G7: 18.13333333 | H7: 2.72 | I7: 176.4705882
B8: Станок 2 | C8: =IFERROR(INDEX(ПЛАН!D:D,SMALL(IF(ПЛАН!$G$6:$G$249="+",ROW(ПЛАН!$G$6:$G$249)),ROW(D6))),"0") -> Шток | D8: =IFERROR(INDEX(ПЛАН!E:E,SMALL(IF(ПЛАН!$G$6:$G$249="+",ROW(ПЛАН!$G$6:$G$249)),ROW(E6))),"0") -> 100-004-02 | E8: 11.10666667 | F8: =IFERROR(INDEX(ПЛАН!F:F,SMALL(IF(ПЛАН!$G$6:$G$249="+",ROW(ПЛАН!$G$6:$G$249)),ROW(F6))),"0") -> 400 | G8: 44.42666667 | H8: 6.664 | I8: 72.02881152
B9: Станок 1 | C9: =IFERROR(INDEX(ПЛАН!D:D,SMALL(IF(ПЛАН!$G$6:$G$249="+",ROW(ПЛАН!$G$6:$G$249)),ROW(D7))),"0") -> Цилиндр ам. | D9: =IFERROR(INDEX(ПЛАН!E:E,SMALL(IF(ПЛАН!$G$6:$G$249="+",ROW(ПЛАН!$G$6:$G$249)),ROW(E7))),"0") -> 100-004-03 | E9: 2.683333333 | F9: =IFERROR(INDEX(ПЛАН!F:F,SMALL(IF(ПЛАН!$G$6:$G$249="+",ROW(ПЛАН!$G$6:$G$249)),ROW(F7))),"0") -> 400 | G9: 10.73333333 | H9: 1.61 | I9: 298.136646
B10: Станок 1 | C10: =IFERROR(INDEX(ПЛАН!D:D,SMALL(IF(ПЛАН!$G$6:$G$249="+",ROW(ПЛАН!$G$6:$G$249)),ROW(D8))),"0") -> Головка | D10: =IFERROR(INDEX(ПЛАН!E:E,SMALL(IF(ПЛАН!$G$6:$G$249="+",ROW(ПЛАН!$G$6:$G$249)),ROW(E8))),"0") -> 100-004-04 | E10: 4.87 | F10: =IFERROR(INDEX(ПЛАН!F:F,SMALL(IF(ПЛАН!$G$6:$G$249="+",ROW(ПЛАН!$G$6:$G$249)),ROW(F8))),"0") -> 400 | G10: 19.48 | H10: 2.922 | I10: 164.2710472
B11: Станок 1 | C11: =IFERROR(INDEX(ПЛАН!D:D,SMALL(IF(ПЛАН!$G$6:$G$249="+",ROW(ПЛАН!$G$6:$G$249)),ROW(D9))),"0") -> Корпус ам. | D11: =IFERROR(INDEX(ПЛАН!E:E,SMALL(IF(ПЛАН!$G$6:$G$249="+",ROW(ПЛАН!$G$6:$G$249)),ROW(E9))),"0") -> 100-005-01 | E11: 0.79 | F11: =IFERROR(INDEX(ПЛАН!F:F,SMALL(IF(ПЛАН!$G$6:$G$249="+",ROW(ПЛАН!$G$6:$G$249)),ROW(F9))),"0") -> 500 | G11: 3.95 | H11: 0.474 | I11: 1012.658228
B12: Станок 2 | C12: =IFERROR(INDEX(ПЛАН!D:D,SMALL(IF(ПЛАН!$G$6:$G$249="+",ROW(ПЛАН!$G$6:$G$249)),ROW(D10))),"0") -> Шток | D12: =IFERROR(INDEX(ПЛАН!E:E,SMALL(IF(ПЛАН!$G$6:$G$249="+",ROW(ПЛАН!$G$6:$G$249)),ROW(E10))),"0") -> 100-005-02 | E12: 2.683333333 | F12: =IFERROR(INDEX(ПЛАН!F:F,SMALL(IF(ПЛАН!$G$6:$G$249="+",ROW(ПЛАН!$G$6:$G$249)),ROW(F10))),"0") -> 500 | G12: 13.41666667 | H12: 1.61 | I12: 298.136646
B13: Станок 1 | C13: =IFERROR(INDEX(ПЛАН!D:D,SMALL(IF(ПЛАН!$G$6:$G$249="+",ROW(ПЛАН!$G$6:$G$249)),ROW(D11))),"0") -> Цилиндр ам. | D13: =IFERROR(INDEX(ПЛАН!E:E,SMALL(IF(ПЛАН!$G$6:$G$249="+",ROW(ПЛАН!$G$6:$G$249)),ROW(E11))),"0") -> 100-005-03 | E13: 4.87 | F13: =IFERROR(INDEX(ПЛАН!F:F,SMALL(IF(ПЛАН!$G$6:$G$249="+",ROW(ПЛАН!$G$6:$G$249)),ROW(F11))),"0") -> 500 | G13: 24.35 | H13: 2.922 | I13: 164.2710472
B14: Не выбрано | C14: =IFERROR(INDEX(ПЛАН!D:D,SMALL(IF(ПЛАН!$G$6:$G$249="+",ROW(ПЛАН!$G$6:$G$249)),ROW(D12))),"0") -> 0 | D14: =IFERROR(INDEX(ПЛАН!E:E,SMALL(IF(ПЛАН!$G$6:$G$249="+",ROW(ПЛАН!$G$6:$G$249)),ROW(E12))),"0") -> 0 | E14: 0 | F14: =IFERROR(INDEX(ПЛАН!F:F,SMALL(IF(ПЛАН!$G$6:$G$249="+",ROW(ПЛАН!$G$6:$G$249)),ROW(F12))),"0") -> 0 | G14: 0 | H14: 0
B15: Не выбрано | C15: =IFERROR(INDEX(ПЛАН!D:D,SMALL(IF(ПЛАН!$G$6:$G$249="+",ROW(ПЛАН!$G$6:$G$249)),ROW(D13))),"0") -> 0 | D15: =IFERROR(INDEX(ПЛАН!E:E,SMALL(IF(ПЛАН!$G$6:$G$249="+",ROW(ПЛАН!$G$6:$G$249)),ROW(E13))),"0") -> 0 | E15: 0 | F15: =IFERROR(INDEX(ПЛАН!F:F,SMALL(IF(ПЛАН!$G$6:$G$249="+",ROW(ПЛАН!$G$6:$G$249)),ROW(F13))),"0") -> 0 | G15: 0 | H15: 0
B16: Не выбрано | C16: =IFERROR(INDEX(ПЛАН!D:D,SMALL(IF(ПЛАН!$G$6:$G$249="+",ROW(ПЛАН!$G$6:$G$249)),ROW(D14))),"0") -> 0 | D16: =IFERROR(INDEX(ПЛАН!E:E,SMALL(IF(ПЛАН!$G$6:$G$249="+",ROW(ПЛАН!$G$6:$G$249)),ROW(E14))),"0") -> 0 | E16: 0 | F16: =IFERROR(INDEX(ПЛАН!F:F,SMALL(IF(ПЛАН!$G$6:$G$249="+",ROW(ПЛАН!$G$6:$G$249)),ROW(F14))),"0") -> 0 | G16: 0 | H16: 0
B17: Не выбрано | C17: =IFERROR(INDEX(ПЛАН!D:D,SMALL(IF(ПЛАН!$G$6:$G$249="+",ROW(ПЛАН!$G$6:$G$249)),ROW(D15))),"0") -> 0 | D17: =IFERROR(INDEX(ПЛАН!E:E,SMALL(IF(ПЛАН!$G$6:$G$249="+",ROW(ПЛАН!$G$6:$G$249)),ROW(E15))),"0") -> 0 | E17: 0 | F17: =IFERROR(INDEX(ПЛАН!F:F,SMALL(IF(ПЛАН!$G$6:$G$249="+",ROW(ПЛАН!$G$6:$G$249)),ROW(F15))),"0") -> 0 | G17: 0 | H17: 0
B18: Не выбрано | C18: =IFERROR(INDEX(ПЛАН!D:D,SMALL(IF(ПЛАН!$G$6:$G$249="+",ROW(ПЛАН!$G$6:$G$249)),ROW(D16))),"0") -> 0 | D18: =IFERROR(INDEX(ПЛАН!E:E,SMALL(IF(ПЛАН!$G$6:$G$249="+",ROW(ПЛАН!$G$6:$G$249)),ROW(E16))),"0") -> 0 | E18: =H18/60*100 -> 0 | F18: =IFERROR(INDEX(ПЛАН!F:F,SMALL(IF(ПЛАН!$G$6:$G$249="+",ROW(ПЛАН!$G$6:$G$249)),ROW(F16))),"0") -> 0 | G18: =E18*F18/100 -> 0 | H18: 0
B19: Не выбрано | C19: =IFERROR(INDEX(ПЛАН!D:D,SMALL(IF(ПЛАН!$G$6:$G$249="+",ROW(ПЛАН!$G$6:$G$249)),ROW(D17))),"0") -> 0 | D19: =IFERROR(INDEX(ПЛАН!E:E,SMALL(IF(ПЛАН!$G$6:$G$249="+",ROW(ПЛАН!$G$6:$G$249)),ROW(E17))),"0") -> 0 | E19: 0 | F19: =IFERROR(INDEX(ПЛАН!F:F,SMALL(IF(ПЛАН!$G$6:$G$249="+",ROW(ПЛАН!$G$6:$G$249)),ROW(F17))),"0") -> 0 | G19: 0 | H19: 0

Sheet Станок 1
A2: Завод | C2: Трудоемкость изготовления деталей по действующим нормам | J2: На октябрь 2021 г.
A3: Оборудование (группа) | C3: Деталь | E3: Трудоемк. на 100 дет. в нормо-час. | F3: Количество деталей на программу (в шт.) | G3: Трудоемк. на программу в нормо-час. | H3: Загрузка оборудован. по действую-щим нормам в нормо-час. | I3: Фонд времени работы одного станка | J3: Тшт, мин. | K3: Количество деталей в смену (в шт.)
A4: Инв. номер | B4: Наименование | C4: Наименование | D4: Обозначение
A5: 1 | B5: 2 | C5: 3 | D5: 4 | E5: 5 | F5: 6 | G5: 7 | H5: 8 | I5: 9 | J5: 10 | K5: 11
B6: Станок 1 | H6: В 3 смены | I6: =176*3 -> 528
C8: =IFERROR(INDEX(ДЕТАЛИ!C:C,SMALL(IF(ДЕТАЛИ!$B$3:$B$19="Станок 1",ROW(ДЕТАЛИ!$B$3:$B$19)),ROW(C1))),"0") -> Корпус | D8: =IFERROR(INDEX(ДЕТАЛИ!D:D,SMALL(IF(ДЕТАЛИ!$B$3:$B$19="Станок 1",ROW(ДЕТАЛИ!$B$3:$B$19)),ROW(D1))),"0") -> 100-001-01 | E8: =IFERROR(INDEX(ДЕТАЛИ!E:E,SMALL(IF(ДЕТАЛИ!$B$3:$B$19="Станок 1",ROW(ДЕТАЛИ!$B$3:$B$19)),ROW(E1))),"0") -> 3.516666667 | F8: =IFERROR(INDEX(ДЕТАЛИ!F:F,SMALL(IF(ДЕТАЛИ!$B$3:$B$19="Станок 1",ROW(ДЕТАЛИ!$B$3:$B$19)),ROW(F1))),"0") -> 300 | G8: =IFERROR(INDEX(ДЕТАЛИ!G:G,SMALL(IF(ДЕТАЛИ!$B$3:$B$19="Станок 1",ROW(ДЕТАЛИ!$B$3:$B$19)),ROW(G1))),"0") -> 10.55 | J8: =IFERROR(INDEX(ДЕТАЛИ!H:H,SMALL(IF(ДЕТАЛИ!$B$3:$B$19="Станок 1",ROW(ДЕТАЛИ!$B$3:$B$19)),ROW(H1))),"0") -> 2.11 | K8: =IFERROR(INDEX(ДЕТАЛИ!I:I,SMALL(IF(ДЕТАЛИ!$B$3:$B$19="Станок 1",ROW(ДЕТАЛИ!$B$3:$B$19)),ROW(I1))),"0") -> 227.4881517
C9: =IFERROR(INDEX(ДЕТАЛИ!C:C,SMALL(IF(ДЕТАЛИ!$B$3:$B$19="Станок 1",ROW(ДЕТАЛИ!$B$3:$B$19)),ROW(C2))),"0") -> Корпус ам. | D9: =IFERROR(INDEX(ДЕТАЛИ!D:D,SMALL(IF(ДЕТАЛИ!$B$3:$B$19="Станок 1",ROW(ДЕТАЛИ!$B$3:$B$19)),ROW(D2))),"0") -> 100-003-01 | E9: =IFERROR(INDEX(ДЕТАЛИ!E:E,SMALL(IF(ДЕТАЛИ!$B$3:$B$19="Станок 1",ROW(ДЕТАЛИ!$B$3:$B$19)),ROW(E2))),"0") -> 7.956666667 | F9: =IFERROR(INDEX(ДЕТАЛИ!F:F,SMALL(IF(ДЕТАЛИ!$B$3:$B$19="Станок 1",ROW(ДЕТАЛИ!$B$3:$B$19)),ROW(F2))),"0") -> 300 | G9: =IFERROR(INDEX(ДЕТАЛИ!G:G,SMALL(IF(ДЕТАЛИ!$B$3:$B$19="Станок 1",ROW(ДЕТАЛИ!$B$3:$B$19)),ROW(G2))),"0") -> 23.87 | J9: =IFERROR(INDEX(ДЕТАЛИ!H:H,SMALL(IF(ДЕТАЛИ!$B$3:$B$19="Станок 1",ROW(ДЕТАЛИ!$B$3:$B$19)),ROW(H2))),"0") -> 4.774 | K9: =IFERROR(INDEX(ДЕТАЛИ!I:I,SMALL(IF(ДЕТАЛИ!$B$3:$B$19="Станок 1",ROW(ДЕТАЛИ!$B$3:$B$19)),ROW(I2))),"0") -> 100.5446167
C10: =IFERROR(INDEX(ДЕТАЛИ!C:C,SMALL(IF(ДЕТАЛИ!$B$3:$B$19="Станок 1",ROW(ДЕТАЛИ!$B$3:$B$19)),ROW(C3))),"0") -> Корпус ам. | D10: =IFERROR(INDEX(ДЕТАЛИ!D:D,SMALL(IF(ДЕТАЛИ!$B$3:$B$19="Станок 1",ROW(ДЕТАЛИ!$B$3:$B$19)),ROW(D3))),"0") -> 100-004-01 | E10: =IFERROR(INDEX(ДЕТАЛИ!E:E,SMALL(IF(ДЕТАЛИ!$B$3:$B$19="Станок 1",ROW(ДЕТАЛИ!$B$3:$B$19)),ROW(E3))),"0") -> 4.533333333 | F10: =IFERROR(INDEX(ДЕТАЛИ!F:F,SMALL(IF(ДЕТАЛИ!$B$3:$B$19="Станок 1",ROW(ДЕТАЛИ!$B$3:$B$19)),ROW(F3))),"0") -> 400 | G10: =IFERROR(INDEX(ДЕТАЛИ!G:G,SMALL(IF(ДЕТАЛИ!$B$3:$B$19="Станок 1",ROW(ДЕТАЛИ!$B$3:$B$19)),ROW(G3))),"0") -> 18.13333333 | J10: =IFERROR(INDEX(ДЕТАЛИ!H:H,SMALL(IF(ДЕТАЛИ!$B$3:$B$19="Станок 1",ROW(ДЕТАЛИ!$B$3:$B$19)),ROW(H3))),"0") -> 2.72 | K10: =IFERROR(INDEX(ДЕТАЛИ!I:I,SMALL(IF(ДЕТАЛИ!$B$3:$B$19="Станок 1",ROW(ДЕТАЛИ!$B$3:$B$19)),ROW(I3))),"0") -> 176.4705882
C11: =IFERROR(INDEX(ДЕТАЛИ!C:C,SMALL(IF(ДЕТАЛИ!$B$3:$B$19="Станок 1",ROW(ДЕТАЛИ!$B$3:$B$19)),ROW(C4))),"0") -> Цилиндр ам. | D11: =IFERROR(INDEX(ДЕТАЛИ!D:D,SMALL(IF(ДЕТАЛИ!$B$3:$B$19="Станок 1",ROW(ДЕТАЛИ!$B$3:$B$19)),ROW(D4))),"0") -> 100-004-03 | E11: =IFERROR(INDEX(ДЕТАЛИ!E:E,SMALL(IF(ДЕТАЛИ!$B$3:$B$19="Станок 1",ROW(ДЕТАЛИ!$B$3:$B$19)),ROW(E4))),"0") -> 2.683333333 | F11: =IFERROR(INDEX(ДЕТАЛИ!F:F,SMALL(IF(ДЕТАЛИ!$B$3:$B$19="Станок 1",ROW(ДЕТАЛИ!$B$3:$B$19)),ROW(F4))),"0") -> 400 | G11: =IFERROR(INDEX(ДЕТАЛИ!G:G,SMALL(IF(ДЕТАЛИ!$B$3:$B$19="Станок 1",ROW(ДЕТАЛИ!$B$3:$B$19)),ROW(G4))),"0") -> 10.73333333 | J11: =IFERROR(INDEX(ДЕТАЛИ!H:H,SMALL(IF(ДЕТАЛИ!$B$3:$B$19="Станок 1",ROW(ДЕТАЛИ!$B$3:$B$19)),ROW(H4))),"0") -> 1.61 | K11: =IFERROR(INDEX(ДЕТАЛИ!I:I,SMALL(IF(ДЕТАЛИ!$B$3:$B$19="Станок 1",ROW(ДЕТАЛИ!$B$3:$B$19)),ROW(I4))),"0") -> 298.136646
C12: =IFERROR(INDEX(ДЕТАЛИ!C:C,SMALL(IF(ДЕТАЛИ!$B$3:$B$19="Станок 1",ROW(ДЕТАЛИ!$B$3:$B$19)),ROW(C5))),"0") -> Головка | D12: =IFERROR(INDEX(ДЕТАЛИ!D:D,SMALL(IF(ДЕТАЛИ!$B$3:$B$19="Станок 1",ROW(ДЕТАЛИ!$B$3:$B$19)),ROW(D5))),"0") -> 100-004-04 | E12: =IFERROR(INDEX(ДЕТАЛИ!E:E,SMALL(IF(ДЕТАЛИ!$B$3:$B$19="Станок 1",ROW(ДЕТАЛИ!$B$3:$B$19)),ROW(E5))),"0") -> 4.87 | F12: =IFERROR(INDEX(ДЕТАЛИ!F:F,SMALL(IF(ДЕТАЛИ!$B$3:$B$19="Станок 1",ROW(ДЕТАЛИ!$B$3:$B$19)),ROW(F5))),"0") -> 400 | G12: =IFERROR(INDEX(ДЕТАЛИ!G:G,SMALL(IF(ДЕТАЛИ!$B$3:$B$19="Станок 1",ROW(ДЕТАЛИ!$B$3:$B$19)),ROW(G5))),"0") -> 19.48 | J12: =IFERROR(INDEX(ДЕТАЛИ!H:H,SMALL(IF(ДЕТАЛИ!$B$3:$B$19="Станок 1",ROW(ДЕТАЛИ!$B$3:$B$19)),ROW(H5))),"0") -> 2.922 | K12: =IFERROR(INDEX(ДЕТАЛИ!I:I,SMALL(IF(ДЕТАЛИ!$B$3:$B$19="Станок 1",ROW(ДЕТАЛИ!$B$3:$B$19)),ROW(I5))),"0") -> 164.2710472
C13: =IFERROR(INDEX(ДЕТАЛИ!C:C,SMALL(IF(ДЕТАЛИ!$B$3:$B$19="Станок 1",ROW(ДЕТАЛИ!$B$3:$B$19)),ROW(C6))),"0") -> Корпус ам. | D13: =IFERROR(INDEX(ДЕТАЛИ!D:D,SMALL(IF(ДЕТАЛИ!$B$3:$B$19="Станок 1",ROW(ДЕТАЛИ!$B$3:$B$19)),ROW(D6))),"0") -> 100-005-01 | E13: =IFERROR(INDEX(ДЕТАЛИ!E:E,SMALL(IF(ДЕТАЛИ!$B$3:$B$19="Станок 1",ROW(ДЕТАЛИ!$B$3:$B$19)),ROW(E6))),"0") -> 0.79 | F13: =IFERROR(INDEX(ДЕТАЛИ!F:F,SMALL(IF(ДЕТАЛИ!$B$3:$B$19="Станок 1",ROW(ДЕТАЛИ!$B$3:$B$19)),ROW(F6))),"0") -> 500 | G13: =IFERROR(INDEX(ДЕТАЛИ!G:G,SMALL(IF(ДЕТАЛИ!$B$3:$B$19="Станок 1",ROW(ДЕТАЛИ!$B$3:$B$19)),ROW(G6))),"0") -> 3.95 | J13: =IFERROR(INDEX(ДЕТАЛИ!H:H,SMALL(IF(ДЕТАЛИ!$B$3:$B$19="Станок 1",ROW(ДЕТАЛИ!$B$3:$B$19)),ROW(H6))),"0") -> 0.474 | K13: =IFERROR(INDEX(ДЕТАЛИ!I:I,SMALL(IF(ДЕТАЛИ!$B$3:$B$19="Станок 1",ROW(ДЕТАЛИ!$B$3:$B$19)),ROW(I6))),"0") -> 1012.658228
C14: =IFERROR(INDEX(ДЕТАЛИ!C:C,SMALL(IF(ДЕТАЛИ!$B$3:$B$19="Станок 1",ROW(ДЕТАЛИ!$B$3:$B$19)),ROW(C7))),"0") -> Цилиндр ам. | D14: =IFERROR(INDEX(ДЕТАЛИ!D:D,SMALL(IF(ДЕТАЛИ!$B$3:$B$19="Станок 1",ROW(ДЕТАЛИ!$B$3:$B$19)),ROW(D7))),"0") -> 100-005-03 | E14: =IFERROR(INDEX(ДЕТАЛИ!E:E,SMALL(IF(ДЕТАЛИ!$B$3:$B$19="Станок 1",ROW(ДЕТАЛИ!$B$3:$B$19)),ROW(E7))),"0") -> 4.87 | F14: =IFERROR(INDEX(ДЕТАЛИ!F:F,SMALL(IF(ДЕТАЛИ!$B$3:$B$19="Станок 1",ROW(ДЕТАЛИ!$B$3:$B$19)),ROW(F7))),"0") -> 500 | G14: =IFERROR(INDEX(ДЕТАЛИ!G:G,SMALL(IF(ДЕТАЛИ!$B$3:$B$19="Станок 1",ROW(ДЕТАЛИ!$B$3:$B$19)),ROW(G7))),"0") -> 24.35 | J14: =IFERROR(INDEX(ДЕТАЛИ!H:H,SMALL(IF(ДЕТАЛИ!$B$3:$B$19="Станок 1",ROW(ДЕТАЛИ!$B$3:$B$19)),ROW(H7))),"0") -> 2.922 | K14: =IFERROR(INDEX(ДЕТАЛИ!I:I,SMALL(IF(ДЕТАЛИ!$B$3:$B$19="Станок 1",ROW(ДЕТАЛИ!$B$3:$B$19)),ROW(I7))),"0") -> 164.2710472
C15: =IFERROR(INDEX(ДЕТАЛИ!C:C,SMALL(IF(ДЕТАЛИ!$B$3:$B$19="Станок 1",ROW(ДЕТАЛИ!$B$3:$B$19)),ROW(C8))),"0") -> 0 | D15: =IFERROR(INDEX(ДЕТАЛИ!D:D,SMALL(IF(ДЕТАЛИ!$B$3:$B$19="Станок 1",ROW(ДЕТАЛИ!$B$3:$B$19)),ROW(D8))),"0") -> 0 | E15: =IFERROR(INDEX(ДЕТАЛИ!E:E,SMALL(IF(ДЕТАЛИ!$B$3:$B$19="Станок 1",ROW(ДЕТАЛИ!$B$3:$B$19)),ROW(E8))),"0") -> 0 | F15: =IFERROR(INDEX(ДЕТАЛИ!F:F,SMALL(IF(ДЕТАЛИ!$B$3:$B$19="Станок 1",ROW(ДЕТАЛИ!$B$3:$B$19)),ROW(F8))),"0") -> 0 | G15: =IFERROR(INDEX(ДЕТАЛИ!G:G,SMALL(IF(ДЕТАЛИ!$B$3:$B$19="Станок 1",ROW(ДЕТАЛИ!$B$3:$B$19)),ROW(G8))),"0") -> 0 | J15: =IFERROR(INDEX(ДЕТАЛИ!H:H,SMALL(IF(ДЕТАЛИ!$B$3:$B$19="Станок 1",ROW(ДЕТАЛИ!$B$3:$B$19)),ROW(H8))),"0") -> 0 | K15: =IFERROR(INDEX(ДЕТАЛИ!I:I,SMALL(IF(ДЕТАЛИ!$B$3:$B$19="Станок 1",ROW(ДЕТАЛИ!$B$3:$B$19)),ROW(I8))),"0") -> 0
C16: =IFERROR(INDEX(ДЕТАЛИ!C:C,SMALL(IF(ДЕТАЛИ!$B$3:$B$19="Станок 1",ROW(ДЕТАЛИ!$B$3:$B$19)),ROW(C9))),"0") -> 0 | D16: =IFERROR(INDEX(ДЕТАЛИ!D:D,SMALL(IF(ДЕТАЛИ!$B$3:$B$19="Станок 1",ROW(ДЕТАЛИ!$B$3:$B$19)),ROW(D9))),"0") -> 0 | E16: =IFERROR(INDEX(ДЕТАЛИ!E:E,SMALL(IF(ДЕТАЛИ!$B$3:$B$19="Станок 1",ROW(ДЕТАЛИ!$B$3:$B$19)),ROW(E9))),"0") -> 0 | F16: =IFERROR(INDEX(ДЕТАЛИ!F:F,SMALL(IF(ДЕТАЛИ!$B$3:$B$19="Станок 1",ROW(ДЕТАЛИ!$B$3:$B$19)),ROW(F9))),"0") -> 0 | G16: =IFERROR(INDEX(ДЕТАЛИ!G:G,SMALL(IF(ДЕТАЛИ!$B$3:$B$19="Станок 1",ROW(ДЕТАЛИ!$B$3:$B$19)),ROW(G9))),"0") -> 0 | J16: =IFERROR(INDEX(ДЕТАЛИ!H:H,SMALL(IF(ДЕТАЛИ!$B$3:$B$19="Станок 1",ROW(ДЕТАЛИ!$B$3:$B$19)),ROW(H9))),"0") -> 0 | K16: =IFERROR(INDEX(ДЕТАЛИ!I:I,SMALL(IF(ДЕТАЛИ!$B$3:$B$19="Станок 1",ROW(ДЕТАЛИ!$B$3:$B$19)),ROW(I9))),"0") -> 0
C17: =IFERROR(INDEX(ДЕТАЛИ!C:C,SMALL(IF(ДЕТАЛИ!$B$3:$B$19="Станок 1",ROW(ДЕТАЛИ!$B$3:$B$19)),ROW(C10))),"0") -> 0 | D17: =IFERROR(INDEX(ДЕТАЛИ!D:D,SMALL(IF(ДЕТАЛИ!$B$3:$B$19="Станок 1",ROW(ДЕТАЛИ!$B$3:$B$19)),ROW(D10))),"0") -> 0 | E17: =IFERROR(INDEX(ДЕТАЛИ!E:E,SMALL(IF(ДЕТАЛИ!$B$3:$B$19="Станок 1",ROW(ДЕТАЛИ!$B$3:$B$19)),ROW(E10))),"0") -> 0 | F17: =IFERROR(INDEX(ДЕТАЛИ!F:F,SMALL(IF(ДЕТАЛИ!$B$3:$B$19="Станок 1",ROW(ДЕТАЛИ!$B$3:$B$19)),ROW(F10))),"0") -> 0 | G17: =IFERROR(INDEX(ДЕТАЛИ!G:G,SMALL(IF(ДЕТАЛИ!$B$3:$B$19="Станок 1",ROW(ДЕТАЛИ!$B$3:$B$19)),ROW(G10))),"0") -> 0 | J17: =IFERROR(INDEX(ДЕТАЛИ!H:H,SMALL(IF(ДЕТАЛИ!$B$3:$B$19="Станок 1",ROW(ДЕТАЛИ!$B$3:$B$19)),ROW(H10))),"0") -> 0 | K17: =IFERROR(INDEX(ДЕТАЛИ!I:I,SMALL(IF(ДЕТАЛИ!$B$3:$B$19="Станок 1",ROW(ДЕТАЛИ!$B$3:$B$19)),ROW(I10))),"0") -> 0
C18: =IFERROR(INDEX(ДЕТАЛИ!C:C,SMALL(IF(ДЕТАЛИ!$B$3:$B$19="Станок 1",ROW(ДЕТАЛИ!$B$3:$B$19)),ROW(C11))),"0") -> 0 | D18: =IFERROR(INDEX(ДЕТАЛИ!D:D,SMALL(IF(ДЕТАЛИ!$B$3:$B$19="Станок 1",ROW(ДЕТАЛИ!$B$3:$B$19)),ROW(D11))),"0") -> 0 | E18: =IFERROR(INDEX(ДЕТАЛИ!E:E,SMALL(IF(ДЕТАЛИ!$B$3:$B$19="Станок 1",ROW(ДЕТАЛИ!$B$3:$B$19)),ROW(E11))),"0") -> 0 | F18: =IFERROR(INDEX(ДЕТАЛИ!F:F,SMALL(IF(ДЕТАЛИ!$B$3:$B$19="Станок 1",ROW(ДЕТАЛИ!$B$3:$B$19)),ROW(F11))),"0") -> 0 | G18: =IFERROR(INDEX(ДЕТАЛИ!G:G,SMALL(IF(ДЕТАЛИ!$B$3:$B$19="Станок 1",ROW(ДЕТАЛИ!$B$3:$B$19)),ROW(G11))),"0") -> 0 | J18: =IFERROR(INDEX(ДЕТАЛИ!H:H,SMALL(IF(ДЕТАЛИ!$B$3:$B$19="Станок 1",ROW(ДЕТАЛИ!$B$3:$B$19)),ROW(H11))),"0") -> 0 | K18: =IFERROR(INDEX(ДЕТАЛИ!I:I,SMALL(IF(ДЕТАЛИ!$B$3:$B$19="Станок 1",ROW(ДЕТАЛИ!$B$3:$B$19)),ROW(I11))),"0") -> 0
C19: =IFERROR(INDEX(ДЕТАЛИ!C:C,SMALL(IF(ДЕТАЛИ!$B$3:$B$19="Станок 1",ROW(ДЕТАЛИ!$B$3:$B$19)),ROW(C12))),"0") -> 0 | D19: =IFERROR(INDEX(ДЕТАЛИ!D:D,SMALL(IF(ДЕТАЛИ!$B$3:$B$19="Станок 1",ROW(ДЕТАЛИ!$B$3:$B$19)),ROW(D12))),"0") -> 0 | E19: =IFERROR(INDEX(ДЕТАЛИ!E:E,SMALL(IF(ДЕТАЛИ!$B$3:$B$19="Станок 1",ROW(ДЕТАЛИ!$B$3:$B$19)),ROW(E12))),"0") -> 0 | F19: =IFERROR(INDEX(ДЕТАЛИ!F:F,SMALL(IF(ДЕТАЛИ!$B$3:$B$19="Станок 1",ROW(ДЕТАЛИ!$B$3:$B$19)),ROW(F12))),"0") -> 0 | G19: =IFERROR(INDEX(ДЕТАЛИ!G:G,SMALL(IF(ДЕТАЛИ!$B$3:$B$19="Станок 1",ROW(ДЕТАЛИ!$B$3:$B$19)),ROW(G12))),"0") -> 0 | J19: =IFERROR(INDEX(ДЕТАЛИ!H:H,SMALL(IF(ДЕТАЛИ!$B$3:$B$19="Станок 1",ROW(ДЕТАЛИ!$B$3:$B$19)),ROW(H12))),"0") -> 0 | K19: =IFERROR(INDEX(ДЕТАЛИ!I:I,SMALL(IF(ДЕТАЛИ!$B$3:$B$19="Станок 1",ROW(ДЕТАЛИ!$B$3:$B$19)),ROW(I12))),"0") -> 0
C20: =IFERROR(INDEX(ДЕТАЛИ!C:C,SMALL(IF(ДЕТАЛИ!$B$3:$B$19="Станок 1",ROW(ДЕТАЛИ!$B$3:$B$19)),ROW(C13))),"0") -> 0 | D20: =IFERROR(INDEX(ДЕТАЛИ!D:D,SMALL(IF(ДЕТАЛИ!$B$3:$B$19="Станок 1",ROW(ДЕТАЛИ!$B$3:$B$19)),ROW(D13))),"0") -> 0 | E20: =IFERROR(INDEX(ДЕТАЛИ!E:E,SMALL(IF(ДЕТАЛИ!$B$3:$B$19="Станок 1",ROW(ДЕТАЛИ!$B$3:$B$19)),ROW(E13))),"0") -> 0 | F20: =IFERROR(INDEX(ДЕТАЛИ!F:F,SMALL(IF(ДЕТАЛИ!$B$3:$B$19="Станок 1",ROW(ДЕТАЛИ!$B$3:$B$19)),ROW(F13))),"0") -> 0 | G20: =IFERROR(INDEX(ДЕТАЛИ!G:G,SMALL(IF(ДЕТАЛИ!$B$3:$B$19="Станок 1",ROW(ДЕТАЛИ!$B$3:$B$19)),ROW(G13))),"0") -> 0 | J20: =IFERROR(INDEX(ДЕТАЛИ!H:H,SMALL(IF(ДЕТАЛИ!$B$3:$B$19="Станок 1",ROW(ДЕТАЛИ!$B$3:$B$19)),ROW(H13))),"0") -> 0 | K20: =IFERROR(INDEX(ДЕТАЛИ!I:I,SMALL(IF(ДЕТАЛИ!$B$3:$B$19="Станок 1",ROW(ДЕТАЛИ!$B$3:$B$19)),ROW(I13))),"0") -> 0
C21: =IFERROR(INDEX(ДЕТАЛИ!C:C,SMALL(IF(ДЕТАЛИ!$B$3:$B$19="Станок 1",ROW(ДЕТАЛИ!$B$3:$B$19)),ROW(C14))),"0") -> 0 | D21: =IFERROR(INDEX(ДЕТАЛИ!D:D,SMALL(IF(ДЕТАЛИ!$B$3:$B$19="Станок 1",ROW(ДЕТАЛИ!$B$3:$B$19)),ROW(D14))),"0") -> 0 | E21: =IFERROR(INDEX(ДЕТАЛИ!E:E,SMALL(IF(ДЕТАЛИ!$B$3:$B$19="Станок 1",ROW(ДЕТАЛИ!$B$3:$B$19)),ROW(E14))),"0") -> 0 | F21: =IFERROR(INDEX(ДЕТАЛИ!F:F,SMALL(IF(ДЕТАЛИ!$B$3:$B$19="Станок 1",ROW(ДЕТАЛИ!$B$3:$B$19)),ROW(F14))),"0") -> 0 | G21: =IFERROR(INDEX(ДЕТАЛИ!G:G,SMALL(IF(ДЕТАЛИ!$B$3:$B$19="Станок 1",ROW(ДЕТАЛИ!$B$3:$B$19)),ROW(G14))),"0") -> 0 | J21: =IFERROR(INDEX(ДЕТАЛИ!H:H,SMALL(IF(ДЕТАЛИ!$B$3:$B$19="Станок 1",ROW(ДЕТАЛИ!$B$3:$B$19)),ROW(H14))),"0") -> 0 | K21: =IFERROR(INDEX(ДЕТАЛИ!I:I,SMALL(IF(ДЕТАЛИ!$B$3:$B$19="Станок 1",ROW(ДЕТАЛИ!$B$3:$B$19)),ROW(I14))),"0") -> 0
C22: =IFERROR(INDEX(ДЕТАЛИ!C:C,SMALL(IF(ДЕТАЛИ!$B$3:$B$19="Станок 1",ROW(ДЕТАЛИ!$B$3:$B$19)),ROW(C15))),"0") -> 0 | D22: =IFERROR(INDEX(ДЕТАЛИ!D:D,SMALL(IF(ДЕТАЛИ!$B$3:$B$19="Станок 1",ROW(ДЕТАЛИ!$B$3:$B$19)),ROW(D15))),"0") -> 0 | E22: =IFERROR(INDEX(ДЕТАЛИ!E:E,SMALL(IF(ДЕТАЛИ!$B$3:$B$19="Станок 1",ROW(ДЕТАЛИ!$B$3:$B$19)),ROW(E15))),"0") -> 0 | F22: =IFERROR(INDEX(ДЕТАЛИ!F:F,SMALL(IF(ДЕТАЛИ!$B$3:$B$19="Станок 1",ROW(ДЕТАЛИ!$B$3:$B$19)),ROW(F15))),"0") -> 0 | G22: =IFERROR(INDEX(ДЕТАЛИ!G:G,SMALL(IF(ДЕТАЛИ!$B$3:$B$19="Станок 1",ROW(ДЕТАЛИ!$B$3:$B$19)),ROW(G15))),"0") -> 0 | J22: =IFERROR(INDEX(ДЕТАЛИ!H:H,SMALL(IF(ДЕТАЛИ!$B$3:$B$19="Станок 1",ROW(ДЕТАЛИ!$B$3:$B$19)),ROW(H15))),"0") -> 0 | K22: =IFERROR(INDEX(ДЕТАЛИ!I:I,SMALL(IF(ДЕТАЛИ!$B$3:$B$19="Станок 1",ROW(ДЕТАЛИ!$B$3:$B$19)),ROW(I15))),"0") -> 0
C23: =IFERROR(INDEX(ДЕТАЛИ!C:C,SMALL(IF(ДЕТАЛИ!$B$3:$B$19="Станок 1",ROW(ДЕТАЛИ!$B$3:$B$19)),ROW(C16))),"0") -> 0 | D23: =IFERROR(INDEX(ДЕТАЛИ!D:D,SMALL(IF(ДЕТАЛИ!$B$3:$B$19="Станок 1",ROW(ДЕТАЛИ!$B$3:$B$19)),ROW(D16))),"0") -> 0 | E23: =IFERROR(INDEX(ДЕТАЛИ!E:E,SMALL(IF(ДЕТАЛИ!$B$3:$B$19="Станок 1",ROW(ДЕТАЛИ!$B$3:$B$19)),ROW(E16))),"0") -> 0 | F23: =IFERROR(INDEX(ДЕТАЛИ!F:F,SMALL(IF(ДЕТАЛИ!$B$3:$B$19="Станок 1",ROW(ДЕТАЛИ!$B$3:$B$19)),ROW(F16))),"0") -> 0 | G23: =IFERROR(INDEX(ДЕТАЛИ!G:G,SMALL(IF(ДЕТАЛИ!$B$3:$B$19="Станок 1",ROW(ДЕТАЛИ!$B$3:$B$19)),ROW(G16))),"0") -> 0 | J23: =IFERROR(INDEX(ДЕТАЛИ!H:H,SMALL(IF(ДЕТАЛИ!$B$3:$B$19="Станок 1",ROW(ДЕТАЛИ!$B$3:$B$19)),ROW(H16))),"0") -> 0 | K23: =IFERROR(INDEX(ДЕТАЛИ!I:I,SMALL(IF(ДЕТАЛИ!$B$3:$B$19="Станок 1",ROW(ДЕТАЛИ!$B$3:$B$19)),ROW(I16))),"0") -> 0
C24: =IFERROR(INDEX(ДЕТАЛИ!C:C,SMALL(IF(ДЕТАЛИ!$B$3:$B$19="Станок 1",ROW(ДЕТАЛИ!$B$3:$B$19)),ROW(C17))),"0") -> 0 | D24: =IFERROR(INDEX(ДЕТАЛИ!D:D,SMALL(IF(ДЕТАЛИ!$B$3:$B$19="Станок 1",ROW(ДЕТАЛИ!$B$3:$B$19)),ROW(D17))),"0") -> 0 | E24: =IFERROR(INDEX(ДЕТАЛИ!E:E,SMALL(IF(ДЕТАЛИ!$B$3:$B$19="Станок 1",ROW(ДЕТАЛИ!$B$3:$B$19)),ROW(E17))),"0") -> 0 | F24: =IFERROR(INDEX(ДЕТАЛИ!F:F,SMALL(IF(ДЕТАЛИ!$B$3:$B$19="Станок 1",ROW(ДЕТАЛИ!$B$3:$B$19)),ROW(F17))),"0") -> 0 | G24: =IFERROR(INDEX(ДЕТАЛИ!G:G,SMALL(IF(ДЕТАЛИ!$B$3:$B$19="Станок 1",ROW(ДЕТАЛИ!$B$3:$B$19)),ROW(G17))),"0") -> 0 | J24: =IFERROR(INDEX(ДЕТАЛИ!H:H,SMALL(IF(ДЕТАЛИ!$B$3:$B$19="Станок 1",ROW(ДЕТАЛИ!$B$3:$B$19)),ROW(H17))),"0") -> 0 | K24: =IFERROR(INDEX(ДЕТАЛИ!I:I,SMALL(IF(ДЕТАЛИ!$B$3:$B$19="Станок 1",ROW(ДЕТАЛИ!$B$3:$B$19)),ROW(I17))),"0") -> 0
G26: =SUM(G8:G24) -> 111.0666667 | H26: =G26/(I6*1) -> 0.2103535354

Sheet Станок 2
A2: Завод | C2: Трудоемкость изготовления деталей по действующим нормам | J2: На октябрь 2021 г.
A3: Оборудование (группа) | C3: Деталь | E3: Трудоемк. на 100 дет. в нормо-час. | F3: Количество деталей на программу (в шт.) | G3: Трудоемк. на программу в нормо-час. | H3: Загрузка оборудован. по действую-щим нормам в нормо-час. | I3: Фонд времени работы одного станка | J3: Тшт, мин. | K3: Количество деталей в смену (в шт.)
A4: Инв. номер | B4: Наименование | C4: Наименование | D4: Обозначение
A5: 1 | B5: 2 | C5: 3 | D5: 4 | E5: 5 | F5: 6 | G5: 7 | H5: 8 | I5: 9 | J5: 10 | K5: 11
B6: Станок 2 | H6: В 3 смены | I6: =176*3 -> 528
C8: =IFERROR(INDEX(ДЕТАЛИ!C:C,SMALL(IF(ДЕТАЛИ!$B$3:$B$19="Станок 2",ROW(ДЕТАЛИ!$B$3:$B$19)),ROW(C1))),"0") -> Шток | D8: =IFERROR(INDEX(ДЕТАЛИ!D:D,SMALL(IF(ДЕТАЛИ!$B$3:$B$19="Станок 2",ROW(ДЕТАЛИ!$B$3:$B$19)),ROW(D1))),"0") -> 100-001-02 | E8: =IFERROR(INDEX(ДЕТАЛИ!E:E,SMALL(IF(ДЕТАЛИ!$B$3:$B$19="Станок 2",ROW(ДЕТАЛИ!$B$3:$B$19)),ROW(E1))),"0") -> 7.956666667 | F8: =IFERROR(INDEX(ДЕТАЛИ!F:F,SMALL(IF(ДЕТАЛИ!$B$3:$B$19="Станок 2",ROW(ДЕТАЛИ!$B$3:$B$19)),ROW(F1))),"0") -> 100 | G8: =IFERROR(INDEX(ДЕТАЛИ!G:G,SMALL(IF(ДЕТАЛИ!$B$3:$B$19="Станок 2",ROW(ДЕТАЛИ!$B$3:$B$19)),ROW(G1))),"0") -> 7.956666667 | J8: =IFERROR(INDEX(ДЕТАЛИ!H:H,SMALL(IF(ДЕТАЛИ!$B$3:$B$19="Станок 2",ROW(ДЕТАЛИ!$B$3:$B$19)),ROW(H1))),"0") -> 4.774 | K8: =IFERROR(INDEX(ДЕТАЛИ!I:I,SMALL(IF(ДЕТАЛИ!$B$3:$B$19="Станок 2",ROW(ДЕТАЛИ!$B$3:$B$19)),ROW(I1))),"0") -> 100.5446167
C9: =IFERROR(INDEX(ДЕТАЛИ!C:C,SMALL(IF(ДЕТАЛИ!$B$3:$B$19="Станок 2",ROW(ДЕТАЛИ!$B$3:$B$19)),ROW(C2))),"0") -> Шток | D9: =IFERROR(INDEX(ДЕТАЛИ!D:D,SMALL(IF(ДЕТАЛИ!$B$3:$B$19="Станок 2",ROW(ДЕТАЛИ!$B$3:$B$19)),ROW(D2))),"0") -> 100-002-02 | E9: =IFERROR(INDEX(ДЕТАЛИ!E:E,SMALL(IF(ДЕТАЛИ!$B$3:$B$19="Станок 2",ROW(ДЕТАЛИ!$B$3:$B$19)),ROW(E2))),"0") -> 3.516666667 | F9: =IFERROR(INDEX(ДЕТАЛИ!F:F,SMALL(IF(ДЕТАЛИ!$B$3:$B$19="Станок 2",ROW(ДЕТАЛИ!$B$3:$B$19)),ROW(F2))),"0") -> 500 | G9: =IFERROR(INDEX(ДЕТАЛИ!G:G,SMALL(IF(ДЕТАЛИ!$B$3:$B$19="Станок 2",ROW(ДЕТАЛИ!$B$3:$B$19)),ROW(G2))),"0") -> 17.58333333 | J9: =IFERROR(INDEX(ДЕТАЛИ!H:H,SMALL(IF(ДЕТАЛИ!$B$3:$B$19="Станок 2",ROW(ДЕТАЛИ!$B$3:$B$19)),ROW(H2))),"0") -> 2.11 | K9: =IFERROR(INDEX(ДЕТАЛИ!I:I,SMALL(IF(ДЕТАЛИ!$B$3:$B$19="Станок 2",ROW(ДЕТАЛИ!$B$3:$B$19)),ROW(I2))),"0") -> 227.4881517
C10: =IFERROR(INDEX(ДЕТАЛИ!C:C,SMALL(IF(ДЕТАЛИ!$B$3:$B$19="Станок 2",ROW(ДЕТАЛИ!$B$3:$B$19)),ROW(C3))),"0") -> Шток | D10: =IFERROR(INDEX(ДЕТАЛИ!D:D,SMALL(IF(ДЕТАЛИ!$B$3:$B$19="Станок 2",ROW(ДЕТАЛИ!$B$3:$B$19)),ROW(D3))),"0") -> 100-004-02 | E10: =IFERROR(INDEX(ДЕТАЛИ!E:E,SMALL(IF(ДЕТАЛИ!$B$3:$B$19="Станок 2",ROW(ДЕТАЛИ!$B$3:$B$19)),ROW(E3))),"0") -> 11.10666667 | F10: =IFERROR(INDEX(ДЕТАЛИ!F:F,SMALL(IF(ДЕТАЛИ!$B$3:$B$19="Станок 2",ROW(ДЕТАЛИ!$B$3:$B$19)),ROW(F3))),"0") -> 400 | G10: =IFERROR(INDEX(ДЕТАЛИ!G:G,SMALL(IF(ДЕТАЛИ!$B$3:$B$19="Станок 2",ROW(ДЕТАЛИ!$B$3:$B$19)),ROW(G3))),"0") -> 44.42666667 | J10: =IFERROR(INDEX(ДЕТАЛИ!H:H,SMALL(IF(ДЕТАЛИ!$B$3:$B$19="Станок 2",ROW(ДЕТАЛИ!$B$3:$B$19)),ROW(H3))),"0") -> 6.664 | K10: =IFERROR(INDEX(ДЕТАЛИ!I:I,SMALL(IF(ДЕТАЛИ!$B$3:$B$19="Станок 2",ROW(ДЕТАЛИ!$B$3:$B$19)),ROW(I3))),"0") -> 72.02881152
C11: =IFERROR(INDEX(ДЕТАЛИ!C:C,SMALL(IF(ДЕТАЛИ!$B$3:$B$19="Станок 2",ROW(ДЕТАЛИ!$B$3:$B$19)),ROW(C4))),"0") -> Шток | D11: =IFERROR(INDEX(ДЕТАЛИ!D:D,SMALL(IF(ДЕТАЛИ!$B$3:$B$19="Станок 2",ROW(ДЕТАЛИ!$B$3:$B$19)),ROW(D4))),"0") -> 100-005-02 | E11: =IFERROR(INDEX(ДЕТАЛИ!E:E,SMALL(IF(ДЕТАЛИ!$B$3:$B$19="Станок 2",ROW(ДЕТАЛИ!$B$3:$B$19)),ROW(E4))),"0") -> 2.683333333 | F11: =IFERROR(INDEX(ДЕТАЛИ!F:F,SMALL(IF(ДЕТАЛИ!$B$3:$B$19="Станок 2",ROW(ДЕТАЛИ!$B$3:$B$19)),ROW(F4))),"0") -> 500 | G11: =IFERROR(INDEX(ДЕТАЛИ!G:G,SMALL(IF(ДЕТАЛИ!$B$3:$B$19="Станок 2",ROW(ДЕТАЛИ!$B$3:$B$19)),ROW(G4))),"0") -> 13.41666667 | J11: =IFERROR(INDEX(ДЕТАЛИ!H:H,SMALL(IF(ДЕТАЛИ!$B$3:$B$19="Станок 2",ROW(ДЕТАЛИ!$B$3:$B$19)),ROW(H4))),"0") -> 1.61 | K11: =IFERROR(INDEX(ДЕТАЛИ!I:I,SMALL(IF(ДЕТАЛИ!$B$3:$B$19="Станок 2",ROW(ДЕТАЛИ!$B$3:$B$19)),ROW(I4))),"0") -> 298.136646
C12: =IFERROR(INDEX(ДЕТАЛИ!C:C,SMALL(IF(ДЕТАЛИ!$B$3:$B$19="Станок 2",ROW(ДЕТАЛИ!$B$3:$B$19)),ROW(C5))),"0") -> 0 | D12: =IFERROR(INDEX(ДЕТАЛИ!D:D,SMALL(IF(ДЕТАЛИ!$B$3:$B$19="Станок 2",ROW(ДЕТАЛИ!$B$3:$B$19)),ROW(D5))),"0") -> 0 | E12: =IFERROR(INDEX(ДЕТАЛИ!E:E,SMALL(IF(ДЕТАЛИ!$B$3:$B$19="Станок 2",ROW(ДЕТАЛИ!$B$3:$B$19)),ROW(E5))),"0") -> 0 | F12: =IFERROR(INDEX(ДЕТАЛИ!F:F,SMALL(IF(ДЕТАЛИ!$B$3:$B$19="Станок 2",ROW(ДЕТАЛИ!$B$3:$B$19)),ROW(F5))),"0") -> 0 | G12: =IFERROR(INDEX(ДЕТАЛИ!G:G,SMALL(IF(ДЕТАЛИ!$B$3:$B$19="Станок 2",ROW(ДЕТАЛИ!$B$3:$B$19)),ROW(G5))),"0") -> 0 | J12: =IFERROR(INDEX(ДЕТАЛИ!H:H,SMALL(IF(ДЕТАЛИ!$B$3:$B$19="Станок 2",ROW(ДЕТАЛИ!$B$3:$B$19)),ROW(H5))),"0") -> 0 | K12: =IFERROR(INDEX(ДЕТАЛИ!I:I,SMALL(IF(ДЕТАЛИ!$B$3:$B$19="Станок 2",ROW(ДЕТАЛИ!$B$3:$B$19)),ROW(I5))),"0") -> 0
C13: =IFERROR(INDEX(ДЕТАЛИ!C:C,SMALL(IF(ДЕТАЛИ!$B$3:$B$19="Станок 2",ROW(ДЕТАЛИ!$B$3:$B$19)),ROW(C6))),"0") -> 0 | D13: =IFERROR(INDEX(ДЕТАЛИ!D:D,SMALL(IF(ДЕТАЛИ!$B$3:$B$19="Станок 2",ROW(ДЕТАЛИ!$B$3:$B$19)),ROW(D6))),"0") -> 0 | E13: =IFERROR(INDEX(ДЕТАЛИ!E:E,SMALL(IF(ДЕТАЛИ!$B$3:$B$19="Станок 2",ROW(ДЕТАЛИ!$B$3:$B$19)),ROW(E6))),"0") -> 0 | F13: =IFERROR(INDEX(ДЕТАЛИ!F:F,SMALL(IF(ДЕТАЛИ!$B$3:$B$19="Станок 2",ROW(ДЕТАЛИ!$B$3:$B$19)),ROW(F6))),"0") -> 0 | G13: =IFERROR(INDEX(ДЕТАЛИ!G:G,SMALL(IF(ДЕТАЛИ!$B$3:$B$19="Станок 2",ROW(ДЕТАЛИ!$B$3:$B$19)),ROW(G6))),"0") -> 0 | J13: =IFERROR(INDEX(ДЕТАЛИ!H:H,SMALL(IF(ДЕТАЛИ!$B$3:$B$19="Станок 2",ROW(ДЕТАЛИ!$B$3:$B$19)),ROW(H6))),"0") -> 0 | K13: =IFERROR(INDEX(ДЕТАЛИ!I:I,SMALL(IF(ДЕТАЛИ!$B$3:$B$19="Станок 2",ROW(ДЕТАЛИ!$B$3:$B$19)),ROW(I6))),"0") -> 0
C14: =IFERROR(INDEX(ДЕТАЛИ!C:C,SMALL(IF(ДЕТАЛИ!$B$3:$B$19="Станок 2",ROW(ДЕТАЛИ!$B$3:$B$19)),ROW(C7))),"0") -> 0 | D14: =IFERROR(INDEX(ДЕТАЛИ!D:D,SMALL(IF(ДЕТАЛИ!$B$3:$B$19="Станок 2",ROW(ДЕТАЛИ!$B$3:$B$19)),ROW(D7))),"0") -> 0 | E14: =IFERROR(INDEX(ДЕТАЛИ!E:E,SMALL(IF(ДЕТАЛИ!$B$3:$B$19="Станок 2",ROW(ДЕТАЛИ!$B$3:$B$19)),ROW(E7))),"0") -> 0 | F14: =IFERROR(INDEX(ДЕТАЛИ!F:F,SMALL(IF(ДЕТАЛИ!$B$3:$B$19="Станок 2",ROW(ДЕТАЛИ!$B$3:$B$19)),ROW(F7))),"0") -> 0 | G14: =IFERROR(INDEX(ДЕТАЛИ!G:G,SMALL(IF(ДЕТАЛИ!$B$3:$B$19="Станок 2",ROW(ДЕТАЛИ!$B$3:$B$19)),ROW(G7))),"0") -> 0 | J14: =IFERROR(INDEX(ДЕТАЛИ!H:H,SMALL(IF(ДЕТАЛИ!$B$3:$B$19="Станок 2",ROW(ДЕТАЛИ!$B$3:$B$19)),ROW(H7))),"0") -> 0 | K14: =IFERROR(INDEX(ДЕТАЛИ!I:I,SMALL(IF(ДЕТАЛИ!$B$3:$B$19="Станок 2",ROW(ДЕТАЛИ!$B$3:$B$19)),ROW(I7))),"0") -> 0
C15: =IFERROR(INDEX(ДЕТАЛИ!C:C,SMALL(IF(ДЕТАЛИ!$B$3:$B$19="Станок 2",ROW(ДЕТАЛИ!$B$3:$B$19)),ROW(C8))),"0") -> 0 | D15: =IFERROR(INDEX(ДЕТАЛИ!D:D,SMALL(IF(ДЕТАЛИ!$B$3:$B$19="Станок 2",ROW(ДЕТАЛИ!$B$3:$B$19)),ROW(D8))),"0") -> 0 | E15: =IFERROR(INDEX(ДЕТАЛИ!E:E,SMALL(IF(ДЕТАЛИ!$B$3:$B$19="Станок 2",ROW(ДЕТАЛИ!$B$3:$B$19)),ROW(E8))),"0") -> 0 | F15: =IFERROR(INDEX(ДЕТАЛИ!F:F,SMALL(IF(ДЕТАЛИ!$B$3:$B$19="Станок 2",ROW(ДЕТАЛИ!$B$3:$B$19)),ROW(F8))),"0") -> 0 | G15: =IFERROR(INDEX(ДЕТАЛИ!G:G,SMALL(IF(ДЕТАЛИ!$B$3:$B$19="Станок 2",ROW(ДЕТАЛИ!$B$3:$B$19)),ROW(G8))),"0") -> 0 | J15: =IFERROR(INDEX(ДЕТАЛИ!H:H,SMALL(IF(ДЕТАЛИ!$B$3:$B$19="Станок 2",ROW(ДЕТАЛИ!$B$3:$B$19)),ROW(H8))),"0") -> 0 | K15: =IFERROR(INDEX(ДЕТАЛИ!I:I,SMALL(IF(ДЕТАЛИ!$B$3:$B$19="Станок 2",ROW(ДЕТАЛИ!$B$3:$B$19)),ROW(I8))),"0") -> 0
C16: =IFERROR(INDEX(ДЕТАЛИ!C:C,SMALL(IF(ДЕТАЛИ!$B$3:$B$19="Станок 2",ROW(ДЕТАЛИ!$B$3:$B$19)),ROW(C9))),"0") -> 0 | D16: =IFERROR(INDEX(ДЕТАЛИ!D:D,SMALL(IF(ДЕТАЛИ!$B$3:$B$19="Станок 2",ROW(ДЕТАЛИ!$B$3:$B$19)),ROW(D9))),"0") -> 0 | E16: =IFERROR(INDEX(ДЕТАЛИ!E:E,SMALL(IF(ДЕТАЛИ!$B$3:$B$19="Станок 2",ROW(ДЕТАЛИ!$B$3:$B$19)),ROW(E9))),"0") -> 0 | F16: =IFERROR(INDEX(ДЕТАЛИ!F:F,SMALL(IF(ДЕТАЛИ!$B$3:$B$19="Станок 2",ROW(ДЕТАЛИ!$B$3:$B$19)),ROW(F9))),"0") -> 0 | G16: =IFERROR(INDEX(ДЕТАЛИ!G:G,SMALL(IF(ДЕТАЛИ!$B$3:$B$19="Станок 2",ROW(ДЕТАЛИ!$B$3:$B$19)),ROW(G9))),"0") -> 0 | J16: =IFERROR(INDEX(ДЕТАЛИ!H:H,SMALL(IF(ДЕТАЛИ!$B$3:$B$19="Станок 2",ROW(ДЕТАЛИ!$B$3:$B$19)),ROW(H9))),"0") -> 0 | K16: =IFERROR(INDEX(ДЕТАЛИ!I:I,SMALL(IF(ДЕТАЛИ!$B$3:$B$19="Станок 2",ROW(ДЕТАЛИ!$B$3:$B$19)),ROW(I9))),"0") -> 0
C17: =IFERROR(INDEX(ДЕТАЛИ!C:C,SMALL(IF(ДЕТАЛИ!$B$3:$B$19="Станок 2",ROW(ДЕТАЛИ!$B$3:$B$19)),ROW(C10))),"0") -> 0 | D17: =IFERROR(INDEX(ДЕТАЛИ!D:D,SMALL(IF(ДЕТАЛИ!$B$3:$B$19="Станок 2",ROW(ДЕТАЛИ!$B$3:$B$19)),ROW(D10))),"0") -> 0 | E17: =IFERROR(INDEX(ДЕТАЛИ!E:E,SMALL(IF(ДЕТАЛИ!$B$3:$B$19="Станок 2",ROW(ДЕТАЛИ!$B$3:$B$19)),ROW(E10))),"0") -> 0 | F17: =IFERROR(INDEX(ДЕТАЛИ!F:F,SMALL(IF(ДЕТАЛИ!$B$3:$B$19="Станок 2",ROW(ДЕТАЛИ!$B$3:$B$19)),ROW(F10))),"0") -> 0 | G17: =IFERROR(INDEX(ДЕТАЛИ!G:G,SMALL(IF(ДЕТАЛИ!$B$3:$B$19="Станок 2",ROW(ДЕТАЛИ!$B$3:$B$19)),ROW(G10))),"0") -> 0 | J17: =IFERROR(INDEX(ДЕТАЛИ!H:H,SMALL(IF(ДЕТАЛИ!$B$3:$B$19="Станок 2",ROW(ДЕТАЛИ!$B$3:$B$19)),ROW(H10))),"0") -> 0 | K17: =IFERROR(INDEX(ДЕТАЛИ!I:I,SMALL(IF(ДЕТАЛИ!$B$3:$B$19="Станок 2",ROW(ДЕТАЛИ!$B$3:$B$19)),ROW(I10))),"0") -> 0
C18: =IFERROR(INDEX(ДЕТАЛИ!C:C,SMALL(IF(ДЕТАЛИ!$B$3:$B$19="Станок 2",ROW(ДЕТАЛИ!$B$3:$B$19)),ROW(C11))),"0") -> 0 | D18: =IFERROR(INDEX(ДЕТАЛИ!D:D,SMALL(IF(ДЕТАЛИ!$B$3:$B$19="Станок 2",ROW(ДЕТАЛИ!$B$3:$B$19)),ROW(D11))),"0") -> 0 | E18: =IFERROR(INDEX(ДЕТАЛИ!E:E,SMALL(IF(ДЕТАЛИ!$B$3:$B$19="Станок 2",ROW(ДЕТАЛИ!$B$3:$B$19)),ROW(E11))),"0") -> 0 | F18: =IFERROR(INDEX(ДЕТАЛИ!F:F,SMALL(IF(ДЕТАЛИ!$B$3:$B$19="Станок 2",ROW(ДЕТАЛИ!$B$3:$B$19)),ROW(F11))),"0") -> 0 | G18: =IFERROR(INDEX(ДЕТАЛИ!G:G,SMALL(IF(ДЕТАЛИ!$B$3:$B$19="Станок 2",ROW(ДЕТАЛИ!$B$3:$B$19)),ROW(G11))),"0") -> 0 | J18: =IFERROR(INDEX(ДЕТАЛИ!H:H,SMALL(IF(ДЕТАЛИ!$B$3:$B$19="Станок 2",ROW(ДЕТАЛИ!$B$3:$B$19)),ROW(H11))),"0") -> 0 | K18: =IFERROR(INDEX(ДЕТАЛИ!I:I,SMALL(IF(ДЕТАЛИ!$B$3:$B$19="Станок 2",ROW(ДЕТАЛИ!$B$3:$B$19)),ROW(I11))),"0") -> 0
C19: =IFERROR(INDEX(ДЕТАЛИ!C:C,SMALL(IF(ДЕТАЛИ!$B$3:$B$19="Станок 2",ROW(ДЕТАЛИ!$B$3:$B$19)),ROW(C12))),"0") -> 0 | D19: =IFERROR(INDEX(ДЕТАЛИ!D:D,SMALL(IF(ДЕТАЛИ!$B$3:$B$19="Станок 2",ROW(ДЕТАЛИ!$B$3:$B$19)),ROW(D12))),"0") -> 0 | E19: =IFERROR(INDEX(ДЕТАЛИ!E:E,SMALL(IF(ДЕТАЛИ!$B$3:$B$19="Станок 2",ROW(ДЕТАЛИ!$B$3:$B$19)),ROW(E12))),"0") -> 0 | F19: =IFERROR(INDEX(ДЕТАЛИ!F:F,SMALL(IF(ДЕТАЛИ!$B$3:$B$19="Станок 2",ROW(ДЕТАЛИ!$B$3:$B$19)),ROW(F12))),"0") -> 0 | G19: =IFERROR(INDEX(ДЕТАЛИ!G:G,SMALL(IF(ДЕТАЛИ!$B$3:$B$19="Станок 2",ROW(ДЕТАЛИ!$B$3:$B$19)),ROW(G12))),"0") -> 0 | J19: =IFERROR(INDEX(ДЕТАЛИ!H:H,SMALL(IF(ДЕТАЛИ!$B$3:$B$19="Станок 2",ROW(ДЕТАЛИ!$B$3:$B$19)),ROW(H12))),"0") -> 0 | K19: =IFERROR(INDEX(ДЕТАЛИ!I:I,SMALL(IF(ДЕТАЛИ!$B$3:$B$19="Станок 2",ROW(ДЕТАЛИ!$B$3:$B$19)),ROW(I12))),"0") -> 0
C20: =IFERROR(INDEX(ДЕТАЛИ!C:C,SMALL(IF(ДЕТАЛИ!$B$3:$B$19="Станок 2",ROW(ДЕТАЛИ!$B$3:$B$19)),ROW(C13))),"0") -> 0 | D20: =IFERROR(INDEX(ДЕТАЛИ!D:D,SMALL(IF(ДЕТАЛИ!$B$3:$B$19="Станок 2",ROW(ДЕТАЛИ!$B$3:$B$19)),ROW(D13))),"0") -> 0 | E20: =IFERROR(INDEX(ДЕТАЛИ!E:E,SMALL(IF(ДЕТАЛИ!$B$3:$B$19="Станок 2",ROW(ДЕТАЛИ!$B$3:$B$19)),ROW(E13))),"0") -> 0 | F20: =IFERROR(INDEX(ДЕТАЛИ!F:F,SMALL(IF(ДЕТАЛИ!$B$3:$B$19="Станок 2",ROW(ДЕТАЛИ!$B$3:$B$19)),ROW(F13))),"0") -> 0 | G20: =IFERROR(INDEX(ДЕТАЛИ!G:G,SMALL(IF(ДЕТАЛИ!$B$3:$B$19="Станок 2",ROW(ДЕТАЛИ!$B$3:$B$19)),ROW(G13))),"0") -> 0 | J20: =IFERROR(INDEX(ДЕТАЛИ!H:H,SMALL(IF(ДЕТАЛИ!$B$3:$B$19="Станок 2",ROW(ДЕТАЛИ!$B$3:$B$19)),ROW(H13))),"0") -> 0 | K20: =IFERROR(INDEX(ДЕТАЛИ!I:I,SMALL(IF(ДЕТАЛИ!$B$3:$B$19="Станок 2",ROW(ДЕТАЛИ!$B$3:$B$19)),ROW(I13))),"0") -> 0
C21: =IFERROR(INDEX(ДЕТАЛИ!C:C,SMALL(IF(ДЕТАЛИ!$B$3:$B$19="Станок 2",ROW(ДЕТАЛИ!$B$3:$B$19)),ROW(C14))),"0") -> 0 | D21: =IFERROR(INDEX(ДЕТАЛИ!D:D,SMALL(IF(ДЕТАЛИ!$B$3:$B$19="Станок 2",ROW(ДЕТАЛИ!$B$3:$B$19)),ROW(D14))),"0") -> 0 | E21: =IFERROR(INDEX(ДЕТАЛИ!E:E,SMALL(IF(ДЕТАЛИ!$B$3:$B$19="Станок 2",ROW(ДЕТАЛИ!$B$3:$B$19)),ROW(E14))),"0") -> 0 | F21: =IFERROR(INDEX(ДЕТАЛИ!F:F,SMALL(IF(ДЕТАЛИ!$B$3:$B$19="Станок 2",ROW(ДЕТАЛИ!$B$3:$B$19)),ROW(F14))),"0") -> 0 | G21: =IFERROR(INDEX(ДЕТАЛИ!G:G,SMALL(IF(ДЕТАЛИ!$B$3:$B$19="Станок 2",ROW(ДЕТАЛИ!$B$3:$B$19)),ROW(G14))),"0") -> 0 | J21: =IFERROR(INDEX(ДЕТАЛИ!H:H,SMALL(IF(ДЕТАЛИ!$B$3:$B$19="Станок 2",ROW(ДЕТАЛИ!$B$3:$B$19)),ROW(H14))),"0") -> 0 | K21: =IFERROR(INDEX(ДЕТАЛИ!I:I,SMALL(IF(ДЕТАЛИ!$B$3:$B$19="Станок 2",ROW(ДЕТАЛИ!$B$3:$B$19)),ROW(I14))),"0") -> 0
C22: =IFERROR(INDEX(ДЕТАЛИ!C:C,SMALL(IF(ДЕТАЛИ!$B$3:$B$19="Станок 2",ROW(ДЕТАЛИ!$B$3:$B$19)),ROW(C15))),"0") -> 0 | D22: =IFERROR(INDEX(ДЕТАЛИ!D:D,SMALL(IF(ДЕТАЛИ!$B$3:$B$19="Станок 2",ROW(ДЕТАЛИ!$B$3:$B$19)),ROW(D15))),"0") -> 0 | E22: =IFERROR(INDEX(ДЕТАЛИ!E:E,SMALL(IF(ДЕТАЛИ!$B$3:$B$19="Станок 2",ROW(ДЕТАЛИ!$B$3:$B$19)),ROW(E15))),"0") -> 0 | F22: =IFERROR(INDEX(ДЕТАЛИ!F:F,SMALL(IF(ДЕТАЛИ!$B$3:$B$19="Станок 2",ROW(ДЕТАЛИ!$B$3:$B$19)),ROW(F15))),"0") -> 0 | G22: =IFERROR(INDEX(ДЕТАЛИ!G:G,SMALL(IF(ДЕТАЛИ!$B$3:$B$19="Станок 2",ROW(ДЕТАЛИ!$B$3:$B$19)),ROW(G15))),"0") -> 0 | J22: =IFERROR(INDEX(ДЕТАЛИ!H:H,SMALL(IF(ДЕТАЛИ!$B$3:$B$19="Станок 2",ROW(ДЕТАЛИ!$B$3:$B$19)),ROW(H15))),"0") -> 0 | K22: =IFERROR(INDEX(ДЕТАЛИ!I:I,SMALL(IF(ДЕТАЛИ!$B$3:$B$19="Станок 2",ROW(ДЕТАЛИ!$B$3:$B$19)),ROW(I15))),"0") -> 0
C23: =IFERROR(INDEX(ДЕТАЛИ!C:C,SMALL(IF(ДЕТАЛИ!$B$3:$B$19="Станок 2",ROW(ДЕТАЛИ!$B$3:$B$19)),ROW(C16))),"0") -> 0 | D23: =IFERROR(INDEX(ДЕТАЛИ!D:D,SMALL(IF(ДЕТАЛИ!$B$3:$B$19="Станок 2",ROW(ДЕТАЛИ!$B$3:$B$19)),ROW(D16))),"0") -> 0 | E23: =IFERROR(INDEX(ДЕТАЛИ!E:E,SMALL(IF(ДЕТАЛИ!$B$3:$B$19="Станок 2",ROW(ДЕТАЛИ!$B$3:$B$19)),ROW(E16))),"0") -> 0 | F23: =IFERROR(INDEX(ДЕТАЛИ!F:F,SMALL(IF(ДЕТАЛИ!$B$3:$B$19="Станок 2",ROW(ДЕТАЛИ!$B$3:$B$19)),ROW(F16))),"0") -> 0 | G23: =IFERROR(INDEX(ДЕТАЛИ!G:G,SMALL(IF(ДЕТАЛИ!$B$3:$B$19="Станок 2",ROW(ДЕТАЛИ!$B$3:$B$19)),ROW(G16))),"0") -> 0 | J23: =IFERROR(INDEX(ДЕТАЛИ!H:H,SMALL(IF(ДЕТАЛИ!$B$3:$B$19="Станок 2",ROW(ДЕТАЛИ!$B$3:$B$19)),ROW(H16))),"0") -> 0 | K23: =IFERROR(INDEX(ДЕТАЛИ!I:I,SMALL(IF(ДЕТАЛИ!$B$3:$B$19="Станок 2",ROW(ДЕТАЛИ!$B$3:$B$19)),ROW(I16))),"0") -> 0
C24: =IFERROR(INDEX(ДЕТАЛИ!C:C,SMALL(IF(ДЕТАЛИ!$B$3:$B$19="Станок 2",ROW(ДЕТАЛИ!$B$3:$B$19)),ROW(C17))),"0") -> 0 | D24: =IFERROR(INDEX(ДЕТАЛИ!D:D,SMALL(IF(ДЕТАЛИ!$B$3:$B$19="Станок 2",ROW(ДЕТАЛИ!$B$3:$B$19)),ROW(D17))),"0") -> 0 | E24: =IFERROR(INDEX(ДЕТАЛИ!E:E,SMALL(IF(ДЕТАЛИ!$B$3:$B$19="Станок 2",ROW(ДЕТАЛИ!$B$3:$B$19)),ROW(E17))),"0") -> 0 | F24: =IFERROR(INDEX(ДЕТАЛИ!F:F,SMALL(IF(ДЕТАЛИ!$B$3:$B$19="Станок 2",ROW(ДЕТАЛИ!$B$3:$B$19)),ROW(F17))),"0") -> 0 | G24: =IFERROR(INDEX(ДЕТАЛИ!G:G,SMALL(IF(ДЕТАЛИ!$B$3:$B$19="Станок 2",ROW(ДЕТАЛИ!$B$3:$B$19)),ROW(G17))),"0") -> 0 | J24: =IFERROR(INDEX(ДЕТАЛИ!H:H,SMALL(IF(ДЕТАЛИ!$B$3:$B$19="Станок 2",ROW(ДЕТАЛИ!$B$3:$B$19)),ROW(H17))),"0") -> 0 | K24: =IFERROR(INDEX(ДЕТАЛИ!I:I,SMALL(IF(ДЕТАЛИ!$B$3:$B$19="Станок 2",ROW(ДЕТАЛИ!$B$3:$B$19)),ROW(I17))),"0") -> 0
C25: =IFERROR(INDEX(ДЕТАЛИ!C:C,SMALL(IF(ДЕТАЛИ!$B$3:$B$19="Станок 2",ROW(ДЕТАЛИ!$B$3:$B$19)),ROW(C18))),"0") -> 0 | D25: =IFERROR(INDEX(ДЕТАЛИ!D:D,SMALL(IF(ДЕТАЛИ!$B$3:$B$19="Станок 2",ROW(ДЕТАЛИ!$B$3:$B$19)),ROW(D18))),"0") -> 0 | E25: =IFERROR(INDEX(ДЕТАЛИ!E:E,SMALL(IF(ДЕТАЛИ!$B$3:$B$19="Станок 2",ROW(ДЕТАЛИ!$B$3:$B$19)),ROW(E18))),"0") -> 0 | F25: =IFERROR(INDEX(ДЕТАЛИ!F:F,SMALL(IF(ДЕТАЛИ!$B$3:$B$19="Станок 2",ROW(ДЕТАЛИ!$B$3:$B$19)),ROW(F18))),"0") -> 0 | G25: =IFERROR(INDEX(ДЕТАЛИ!G:G,SMALL(IF(ДЕТАЛИ!$B$3:$B$19="Станок 2",ROW(ДЕТАЛИ!$B$3:$B$19)),ROW(G18))),"0") -> 0 | J25: =IFERROR(INDEX(ДЕТАЛИ!H:H,SMALL(IF(ДЕТАЛИ!$B$3:$B$19="Станок 2",ROW(ДЕТАЛИ!$B$3:$B$19)),ROW(H18))),"0") -> 0 | K25: =IFERROR(INDEX(ДЕТАЛИ!I:I,SMALL(IF(ДЕТАЛИ!$B$3:$B$19="Станок 2",ROW(ДЕТАЛИ!$B$3:$B$19)),ROW(I18))),"0") -> 0
C26: =IFERROR(INDEX(ДЕТАЛИ!C:C,SMALL(IF(ДЕТАЛИ!$B$3:$B$19="Станок 2",ROW(ДЕТАЛИ!$B$3:$B$19)),ROW(C19))),"0") -> 0 | D26: =IFERROR(INDEX(ДЕТАЛИ!D:D,SMALL(IF(ДЕТАЛИ!$B$3:$B$19="Станок 2",ROW(ДЕТАЛИ!$B$3:$B$19)),ROW(D19))),"0") -> 0 | E26: =IFERROR(INDEX(ДЕТАЛИ!E:E,SMALL(IF(ДЕТАЛИ!$B$3:$B$19="Станок 2",ROW(ДЕТАЛИ!$B$3:$B$19)),ROW(E19))),"0") -> 0 | F26: =IFERROR(INDEX(ДЕТАЛИ!F:F,SMALL(IF(ДЕТАЛИ!$B$3:$B$19="Станок 2",ROW(ДЕТАЛИ!$B$3:$B$19)),ROW(F19))),"0") -> 0 | G26: =IFERROR(INDEX(ДЕТАЛИ!G:G,SMALL(IF(ДЕТАЛИ!$B$3:$B$19="Станок 2",ROW(ДЕТАЛИ!$B$3:$B$19)),ROW(G19))),"0") -> 0 | J26: =IFERROR(INDEX(ДЕТАЛИ!H:H,SMALL(IF(ДЕТАЛИ!$B$3:$B$19="Станок 2",ROW(ДЕТАЛИ!$B$3:$B$19)),ROW(H19))),"0") -> 0 | K26: =IFERROR(INDEX(ДЕТАЛИ!I:I,SMALL(IF(ДЕТАЛИ!$B$3:$B$19="Станок 2",ROW(ДЕТАЛИ!$B$3:$B$19)),ROW(I19))),"0") -> 0
C27: =IFERROR(INDEX(ДЕТАЛИ!C:C,SMALL(IF(ДЕТАЛИ!$B$3:$B$19="Станок 2",ROW(ДЕТАЛИ!$B$3:$B$19)),ROW(C20))),"0") -> 0 | D27: =IFERROR(INDEX(ДЕТАЛИ!D:D,SMALL(IF(ДЕТАЛИ!$B$3:$B$19="Станок 2",ROW(ДЕТАЛИ!$B$3:$B$19)),ROW(D20))),"0") -> 0 | E27: =IFERROR(INDEX(ДЕТАЛИ!E:E,SMALL(IF(ДЕТАЛИ!$B$3:$B$19="Станок 2",ROW(ДЕТАЛИ!$B$3:$B$19)),ROW(E20))),"0") -> 0 | F27: =IFERROR(INDEX(ДЕТАЛИ!F:F,SMALL(IF(ДЕТАЛИ!$B$3:$B$19="Станок 2",ROW(ДЕТАЛИ!$B$3:$B$19)),ROW(F20))),"0") -> 0 | G27: =IFERROR(INDEX(ДЕТАЛИ!G:G,SMALL(IF(ДЕТАЛИ!$B$3:$B$19="Станок 2",ROW(ДЕТАЛИ!$B$3:$B$19)),ROW(G20))),"0") -> 0 | J27: =IFERROR(INDEX(ДЕТАЛИ!H:H,SMALL(IF(ДЕТАЛИ!$B$3:$B$19="Станок 2",ROW(ДЕТАЛИ!$B$3:$B$19)),ROW(H20))),"0") -> 0 | K27: =IFERROR(INDEX(ДЕТАЛИ!I:I,SMALL(IF(ДЕТАЛИ!$B$3:$B$19="Станок 2",ROW(ДЕТАЛИ!$B$3:$B$19)),ROW(I20))),"0") -> 0
C28: =IFERROR(INDEX(ДЕТАЛИ!C:C,SMALL(IF(ДЕТАЛИ!$B$3:$B$19="Станок 2",ROW(ДЕТАЛИ!$B$3:$B$19)),ROW(C21))),"0") -> 0 | D28: =IFERROR(INDEX(ДЕТАЛИ!D:D,SMALL(IF(ДЕТАЛИ!$B$3:$B$19="Станок 2",ROW(ДЕТАЛИ!$B$3:$B$19)),ROW(D21))),"0") -> 0 | E28: =IFERROR(INDEX(ДЕТАЛИ!E:E,SMALL(IF(ДЕТАЛИ!$B$3:$B$19="Станок 2",ROW(ДЕТАЛИ!$B$3:$B$19)),ROW(E21))),"0") -> 0 | F28: =IFERROR(INDEX(ДЕТАЛИ!F:F,SMALL(IF(ДЕТАЛИ!$B$3:$B$19="Станок 2",ROW(ДЕТАЛИ!$B$3:$B$19)),ROW(F21))),"0") -> 0 | G28: =IFERROR(INDEX(ДЕТАЛИ!G:G,SMALL(IF(ДЕТАЛИ!$B$3:$B$19="Станок 2",ROW(ДЕТАЛИ!$B$3:$B$19)),ROW(G21))),"0") -> 0 | J28: =IFERROR(INDEX(ДЕТАЛИ!H:H,SMALL(IF(ДЕТАЛИ!$B$3:$B$19="Станок 2",ROW(ДЕТАЛИ!$B$3:$B$19)),ROW(H21))),"0") -> 0 | K28: =IFERROR(INDEX(ДЕТАЛИ!I:I,SMALL(IF(ДЕТАЛИ!$B$3:$B$19="Станок 2",ROW(ДЕТАЛИ!$B$3:$B$19)),ROW(I21))),"0") -> 0
C29: =IFERROR(INDEX(ДЕТАЛИ!C:C,SMALL(IF(ДЕТАЛИ!$B$3:$B$19="Станок 2",ROW(ДЕТАЛИ!$B$3:$B$19)),ROW(C22))),"0") -> 0 | D29: =IFERROR(INDEX(ДЕТАЛИ!D:D,SMALL(IF(ДЕТАЛИ!$B$3:$B$19="Станок 2",ROW(ДЕТАЛИ!$B$3:$B$19)),ROW(D22))),"0") -> 0 | E29: =IFERROR(INDEX(ДЕТАЛИ!E:E,SMALL(IF(ДЕТАЛИ!$B$3:$B$19="Станок 2",ROW(ДЕТАЛИ!$B$3:$B$19)),ROW(E22))),"0") -> 0 | F29: =IFERROR(INDEX(ДЕТАЛИ!F:F,SMALL(IF(ДЕТАЛИ!$B$3:$B$19="Станок 2",ROW(ДЕТАЛИ!$B$3:$B$19)),ROW(F22))),"0") -> 0 | G29: =IFERROR(INDEX(ДЕТАЛИ!G:G,SMALL(IF(ДЕТАЛИ!$B$3:$B$19="Станок 2",ROW(ДЕТАЛИ!$B$3:$B$19)),ROW(G22))),"0") -> 0 | J29: =IFERROR(INDEX(ДЕТАЛИ!H:H,SMALL(IF(ДЕТАЛИ!$B$3:$B$19="Станок 2",ROW(ДЕТАЛИ!$B$3:$B$19)),ROW(H22))),"0") -> 0 | K29: =IFERROR(INDEX(ДЕТАЛИ!I:I,SMALL(IF(ДЕТАЛИ!$B$3:$B$19="Станок 2",ROW(ДЕТАЛИ!$B$3:$B$19)),ROW(I22))),"0") -> 0
C30: =IFERROR(INDEX(ДЕТАЛИ!C:C,SMALL(IF(ДЕТАЛИ!$B$3:$B$19="Станок 2",ROW(ДЕТАЛИ!$B$3:$B$19)),ROW(C23))),"0") -> 0 | D30: =IFERROR(INDEX(ДЕТАЛИ!D:D,SMALL(IF(ДЕТАЛИ!$B$3:$B$19="Станок 2",ROW(ДЕТАЛИ!$B$3:$B$19)),ROW(D23))),"0") -> 0 | E30: =IFERROR(INDEX(ДЕТАЛИ!E:E,SMALL(IF(ДЕТАЛИ!$B$3:$B$19="Станок 2",ROW(ДЕТАЛИ!$B$3:$B$19)),ROW(E23))),"0") -> 0 | F30: =IFERROR(INDEX(ДЕТАЛИ!F:F,SMALL(IF(ДЕТАЛИ!$B$3:$B$19="Станок 2",ROW(ДЕТАЛИ!$B$3:$B$19)),ROW(F23))),"0") -> 0 | G30: =IFERROR(INDEX(ДЕТАЛИ!G:G,SMALL(IF(ДЕТАЛИ!$B$3:$B$19="Станок 2",ROW(ДЕТАЛИ!$B$3:$B$19)),ROW(G23))),"0") -> 0 | J30: =IFERROR(INDEX(ДЕТАЛИ!H:H,SMALL(IF(ДЕТАЛИ!$B$3:$B$19="Станок 2",ROW(ДЕТАЛИ!$B$3:$B$19)),ROW(H23))),"0") -> 0 | K30: =IFERROR(INDEX(ДЕТАЛИ!I:I,SMALL(IF(ДЕТАЛИ!$B$3:$B$19="Станок 2",ROW(ДЕТАЛИ!$B$3:$B$19)),ROW(I23))),"0") -> 0
C31: =IFERROR(INDEX(ДЕТАЛИ!C:C,SMALL(IF(ДЕТАЛИ!$B$3:$B$19="Станок 2",ROW(ДЕТАЛИ!$B$3:$B$19)),ROW(C24))),"0") -> 0 | D31: =IFERROR(INDEX(ДЕТАЛИ!D:D,SMALL(IF(ДЕТАЛИ!$B$3:$B$19="Станок 2",ROW(ДЕТАЛИ!$B$3:$B$19)),ROW(D24))),"0") -> 0 | E31: =IFERROR(INDEX(ДЕТАЛИ!E:E,SMALL(IF(ДЕТАЛИ!$B$3:$B$19="Станок 2",ROW(ДЕТАЛИ!$B$3:$B$19)),ROW(E24))),"0") -> 0 | F31: =IFERROR(INDEX(ДЕТАЛИ!F:F,SMALL(IF(ДЕТАЛИ!$B$3:$B$19="Станок 2",ROW(ДЕТАЛИ!$B$3:$B$19)),ROW(F24))),"0") -> 0 | G31: =IFERROR(INDEX(ДЕТАЛИ!G:G,SMALL(IF(ДЕТАЛИ!$B$3:$B$19="Станок 2",ROW(ДЕТАЛИ!$B$3:$B$19)),ROW(G24))),"0") -> 0 | J31: =IFERROR(INDEX(ДЕТАЛИ!H:H,SMALL(IF(ДЕТАЛИ!$B$3:$B$19="Станок 2",ROW(ДЕТАЛИ!$B$3:$B$19)),ROW(H24))),"0") -> 0 | K31: =IFERROR(INDEX(ДЕТАЛИ!I:I,SMALL(IF(ДЕТАЛИ!$B$3:$B$19="Станок 2",ROW(ДЕТАЛИ!$B$3:$B$19)),ROW(I24))),"0") -> 0
C32: =IFERROR(INDEX(ДЕТАЛИ!C:C,SMALL(IF(ДЕТАЛИ!$B$3:$B$19="Станок 2",ROW(ДЕТАЛИ!$B$3:$B$19)),ROW(C25))),"0") -> 0 | D32: =IFERROR(INDEX(ДЕТАЛИ!D:D,SMALL(IF(ДЕТАЛИ!$B$3:$B$19="Станок 2",ROW(ДЕТАЛИ!$B$3:$B$19)),ROW(D25))),"0") -> 0 | E32: =IFERROR(INDEX(ДЕТАЛИ!E:E,SMALL(IF(ДЕТАЛИ!$B$3:$B$19="Станок 2",ROW(ДЕТАЛИ!$B$3:$B$19)),ROW(E25))),"0") -> 0 | F32: =IFERROR(INDEX(ДЕТАЛИ!F:F,SMALL(IF(ДЕТАЛИ!$B$3:$B$19="Станок 2",ROW(ДЕТАЛИ!$B$3:$B$19)),ROW(F25))),"0") -> 0 | G32: =IFERROR(INDEX(ДЕТАЛИ!G:G,SMALL(IF(ДЕТАЛИ!$B$3:$B$19="Станок 2",ROW(ДЕТАЛИ!$B$3:$B$19)),ROW(G25))),"0") -> 0 | J32: =IFERROR(INDEX(ДЕТАЛИ!H:H,SMALL(IF(ДЕТАЛИ!$B$3:$B$19="Станок 2",ROW(ДЕТАЛИ!$B$3:$B$19)),ROW(H25))),"0") -> 0 | K32: =IFERROR(INDEX(ДЕТАЛИ!I:I,SMALL(IF(ДЕТАЛИ!$B$3:$B$19="Станок 2",ROW(ДЕТАЛИ!$B$3:$B$19)),ROW(I25))),"0") -> 0
C33: =IFERROR(INDEX(ДЕТАЛИ!C:C,SMALL(IF(ДЕТАЛИ!$B$3:$B$19="Станок 2",ROW(ДЕТАЛИ!$B$3:$B$19)),ROW(C26))),"0") -> 0 | D33: =IFERROR(INDEX(ДЕТАЛИ!D:D,SMALL(IF(ДЕТАЛИ!$B$3:$B$19="Станок 2",ROW(ДЕТАЛИ!$B$3:$B$19)),ROW(D26))),"0") -> 0 | E33: =IFERROR(INDEX(ДЕТАЛИ!E:E,SMALL(IF(ДЕТАЛИ!$B$3:$B$19="Станок 2",ROW(ДЕТАЛИ!$B$3:$B$19)),ROW(E26))),"0") -> 0 | F33: =IFERROR(INDEX(ДЕТАЛИ!F:F,SMALL(IF(ДЕТАЛИ!$B$3:$B$19="Станок 2",ROW(ДЕТАЛИ!$B$3:$B$19)),ROW(F26))),"0") -> 0 | G33: =IFERROR(INDEX(ДЕТАЛИ!G:G,SMALL(IF(ДЕТАЛИ!$B$3:$B$19="Станок 2",ROW(ДЕТАЛИ!$B$3:$B$19)),ROW(G26))),"0") -> 0 | J33: =IFERROR(INDEX(ДЕТАЛИ!H:H,SMALL(IF(ДЕТАЛИ!$B$3:$B$19="Станок 2",ROW(ДЕТАЛИ!$B$3:$B$19)),ROW(H26))),"0") -> 0 | K33: =IFERROR(INDEX(ДЕТАЛИ!I:I,SMALL(IF(ДЕТАЛИ!$B$3:$B$19="Станок 2",ROW(ДЕТАЛИ!$B$3:$B$19)),ROW(I26))),"0") -> 0
C34: =IFERROR(INDEX(ДЕТАЛИ!C:C,SMALL(IF(ДЕТАЛИ!$B$3:$B$19="Станок 2",ROW(ДЕТАЛИ!$B$3:$B$19)),ROW(C27))),"0") -> 0 | D34: =IFERROR(INDEX(ДЕТАЛИ!D:D,SMALL(IF(ДЕТАЛИ!$B$3:$B$19="Станок 2",ROW(ДЕТАЛИ!$B$3:$B$19)),ROW(D27))),"0") -> 0 | E34: =IFERROR(INDEX(ДЕТАЛИ!E:E,SMALL(IF(ДЕТАЛИ!$B$3:$B$19="Станок 2",ROW(ДЕТАЛИ!$B$3:$B$19)),ROW(E27))),"0") -> 0 | F34: =IFERROR(INDEX(ДЕТАЛИ!F:F,SMALL(IF(ДЕТАЛИ!$B$3:$B$19="Станок 2",ROW(ДЕТАЛИ!$B$3:$B$19)),ROW(F27))),"0") -> 0 | G34: =IFERROR(INDEX(ДЕТАЛИ!G:G,SMALL(IF(ДЕТАЛИ!$B$3:$B$19="Станок 2",ROW(ДЕТАЛИ!$B$3:$B$19)),ROW(G27))),"0") -> 0 | J34: =IFERROR(INDEX(ДЕТАЛИ!H:H,SMALL(IF(ДЕТАЛИ!$B$3:$B$19="Станок 2",ROW(ДЕТАЛИ!$B$3:$B$19)),ROW(H27))),"0") -> 0 | K34: =IFERROR(INDEX(ДЕТАЛИ!I:I,SMALL(IF(ДЕТАЛИ!$B$3:$B$19="Станок 2",ROW(ДЕТАЛИ!$B$3:$B$19)),ROW(I27))),"0") -> 0
G36: =SUM(G8:G34) -> 83.38333333 | H36: =G36/(I6*1) -> 0.1579229798
